Cogmind - Beta 13 @@@ ROGUE MODE // 2024.05.31 @ 13:59:03 Player: Blade Result: Destroyed by H-77 Assassin with Coil Gun Performance ------------- Evolutions (6) 3000 Regions Visited (14) 2800 Robots Destroyed (56) 280 Value Destroyed (1432) 1432 Prototype IDs (17) 340 Alien Tech Used (0) 0 Bonus (442) 442 TOTAL SCORE: 8294 Bonus ------- High Alert Combat Kills 39 Follower Combat Kills 103 Met Data Miner 300 Cogmind --------- Core Integrity 0/1150 Matter 110/300 Energy 90/100 System Corruption 0% Temperature Cool (0) Movement Core (50) Location -4/Upper Caves Parts ------- > --- POWER (1) -------- (None) > --- PROPULSION (6) --- (None) > --- UTILITY (10) ----- Advanced Signal Interpreter > --- WEAPON (2) ------- (None) > --- INVENTORY (5) ---- Advanced Power Amplifier Advanced Power Amplifier Advanced Terrain Scanner Advanced Plasma Cannon Railgun Peak State ------------ > --- POWER ------------ Makeshift Power Source > --- PROPULSION ------- Improved VTOL Module Improved Cesium-ion Thruster Improved Cesium-ion Thruster Improved Cesium-ion Thruster Nuclear Pulse Thruster Impulse Thruster > --- UTILITY ---------- Small Storage Unit Enhanced Optical Array Improved Sensor Array Advanced Signal Interpreter Advanced Terrain Scanner Hacking Suite Advanced Hacking Suite > --- WEAPON ----------- Improved EM Pulse Cannon Advanced Plasma Cannon > --- INVENTORY -------- Improved Cesium-ion Thruster Nuclear Pulse Thruster High-capacity Matter Pod [Rating: 74] Favorites ----------- Power Makeshift Power Source Engine Makeshift Power Source Power Core Micro Nuclear Core Propulsion Improved Cesium-ion Thruster Leg Aluminum Leg Wheel Compact Wheel Flight Unit Improved Cesium-ion Thruster Utility Small Storage Unit Device Trap Scanner Storage Small Storage Unit Processor Advanced Signal Interpreter Hackware Hacking Suite Protection Improved Light Armor Plating Weapon Advanced Assault Cannon Energy Gun Small Laser Energy Cannon Advanced Plasma Cannon Ballistic Gun Assault Rifle Ballistic Cannon Advanced Assault Cannon Launcher Missile Launcher Build | -11 -10 -9 -9 -8 -8 -7 -7 -7 -7 -6 -6 -5 -4 -4 ------- Run | Yrd Mat Mat Min Mat Sto Fac Low Low Dat Pro Fac Fac Fac Upp Slots Evolved 12 | . . 2 . 2 . 2 . . . . 2 2 2 . Power . | . . . . . . . . . . . . . . . Propulsion 4 | . . 2 . . . . . . . . . 1 1 . Utility 8 | . . . . 2 . 2 . . . . 2 1 1 . Weapon . | . . . . . . . . . . . . . . . Parts Attached 69 | . 4 1 1 9 11 5 2 1 . . 15 9 11 . Power 13 | . . . . 1 4 3 1 1 . . 2 1 . . Engine 10 | . . . . . 4 2 1 1 . . 1 1 . . Core 3 | . . . . 1 . 1 . . . . 1 . . . Reactor . | . . . . . . . . . . . . . . . Propulsion 14 | . 1 . . 1 4 . . . . . 4 1 3 . Treads . | . . . . . . . . . . . . . . . Leg 1 | . 1 . . . . . . . . . . . . . Wheel 1 | . . . . 1 . . . . . . . . . . Hover . | . . . . . . . . . . . . . . . Flight 12 | . . . . . 4 . . . . . 4 1 3 . Utility 23 | . . . . 2 1 1 1 . . . 7 5 6 . Device 14 | . . . . 1 1 1 1 . . . 4 3 3 . Storage 1 | . . . . . . . . . . . . . 1 . Processor 3 | . . . . . . . . . . . 2 . 1 . Hackware 4 | . . . . . . . . . . . 1 2 1 . Protection 1 | . . . . 1 . . . . . . . . . . Artifact . | . . . . . . . . . . . . . . . Weapon 19 | . 3 1 1 5 2 1 . . . . 2 2 2 . Energy Gun . | . . . . . . . . . . . . . . . Energy Cannon 2 | . . . . . . . . . . . . 2 . . Ballistic Gun 5 | . 2 . . 3 . . . . . . . . . . Ballistic Cannon 8 | . 1 1 . 1 1 1 . . . . 1 . 2 . Launcher 4 | . . . 1 1 1 . . . . . 1 . . . Special Weapon . | . . . . . . . . . . . . . . . Impact Weapon . | . . . . . . . . . . . . . . . Slashing Weapon . | . . . . . . . . . . . . . . . Piercing Weapon . | . . . . . . . . . . . . . . . Special Melee Weapon . | . . . . . . . . . . . . . . . Unidentified Prototypes 4 | . . . . 1 1 1 . . . . . . 1 . Parts Lost 32 | . . . . 4 1 . . . . 1 5 3 15 3 Power 4 | . . . . 1 1 . . . . . 1 . 1 . Propulsion 10 | . . . . 1 . . . . . . 1 . 7 1 Utility 13 | . . . . 1 . . . . . . 2 2 6 2 Weapon 5 | . . . . 1 . . . . . 1 1 1 1 . Highest Loss Streak 11 | . . . . 2 1 . . . . 1 3 2 11 2 To Critical Strikes . | . . . . . . . . . . . . . . . Average Slot Usage (%) 69 | . 84 66 66 55 79 72 69 69 69 68 75 82 66 15 Engine 6 | . 14 11 11 2 7 5 7 7 7 7 5 . 4 . Leg 6 | . 28 22 22 11 . . . . . . . . . . Flight 17 | . . . . . 35 30 30 30 30 30 25 29 23 4 Device 7 | . . . . 1 9 12 7 7 7 7 17 10 6 . Storage 7 | . 14 11 11 9 9 7 7 7 7 7 6 5 5 5 Processor 4 | . . . . . . . . . . . 10 11 10 5 Hackware 2 | . . . . . . . . . . . . 6 10 . Energy Cannon 1 | . . . . . . . . . . . . 6 2 . Ballistic Gun 2 | . 18 11 2 4 . . . . . . . . . . Ballistic Cannon 5 | . 3 11 11 9 7 7 7 7 7 7 5 . 2 . Launcher 3 | . . . 8 4 8 7 7 7 7 6 1 3 . . Naked Turns . | . . . . . . . . . . . . . . . Heaviest Build 30 | 12 15 16 17 20 24 30 24 24 23 23 25 29 27 4 Greatest Support 36 | 20 20 20 20 20 24 24 24 24 24 24 24 29 36 6 Greatest Overweight (x) 6 | . . . . 1 . 6 . . . . 1 . 1 1 Average Overweight (x) . | . . . . . . . . . . . . . . . Largest Inventory Capacity 8 | 8 8 8 8 8 8 8 8 8 8 8 8 8 8 5 Average Capacity 7 | 8 8 8 8 8 8 8 8 8 8 8 8 8 7 5 Most Carried 8 | 6 8 8 8 8 7 6 6 8 8 8 8 6 5 5 Average Carried 6 | 6 7 8 7 7 4 5 5 7 8 8 7 4 3 5 Final Capacity 8 | 8 8 8 8 8 8 8 8 8 8 8 8 8 5 5 Final Carried 8 | 6 8 8 8 7 5 5 6 8 8 8 5 3 5 5 Class Distribution -------------------- 38% | Mutant 36% | Sprinter 10% | Scout 9% | Hacker-Scout 4% | Hacker-Sprinter Dominant Class ---------------- Mutant | -10/Materials Mutant | -9/Materials Mutant | -9/Mines Mutant | -8/Materials Sprinter | -8/Storage Mutant | -7/Factory Sprinter | -7/Lower Caves Sprinter | -7/Lower Caves Sprinter | -7/Data Miner Sprinter | -6/Proximity Caves Sprinter | -6/Factory Scout | -5/Factory Hacker-Scout | -4/Factory Mutant | -4/Upper Caves Resources | -11 -10 -9 -9 -8 -8 -7 -7 -7 -7 -6 -6 -5 -4 -4 ----------- Run | Yrd Mat Mat Min Mat Sto Fac Low Low Dat Pro Fac Fac Fac Upp Matter Collected 1377 | 200 73 44 99 145 259 . 57 12 . 10 203 103 172 . Remotely . | . . . . . . . . . . . . . . . Salvage Created 1084 | . 131 82 101 154 140 . . 23 . 23 31 114 285 . Parts 89 | . 8 6 10 8 22 . . 5 . 3 1 13 13 . Haulers Intercepted 2 | . 1 . . 1 . . . . . . . . . . Recyclers Shooed . | . . . . . . . . . . . . . . . Parts Field Recycled . | . . . . . . . . . . . . . . . Retrieved Matter . | . . . . . . . . . . . . . . . Parts Self-Destructed 15 | . . . . . . . 4 5 . 6 . . . . Prevented . | . . . . . . . . . . . . . . . Kills | -11 -10 -9 -9 -8 -8 -7 -7 -7 -7 -6 -6 -5 -4 -4 ------- Run | Yrd Mat Mat Min Mat Sto Fac Low Low Dat Pro Fac Fac Fac Upp Combat Hostiles Destroyed 41 | . 2 2 5 6 10 . . 3 . 2 3 5 3 . Guns 2 | . . 1 . 1 . . . . . . . . . . Cannons 12 | . 2 1 . 3 1 . . 1 . . . 2 2 . AOE 27 | . . . 5 2 9 . . 2 . 2 3 3 1 . Classes Destroyed 11 | . 3 1 1 1 4 . . . . . . . 1 . Worker 5 | . . . . . 2 . . . . . . 1 2 . Builder 2 | . 1 . . . . . . . . . . . 1 . Hauler 2 | . 1 . . 1 . . . . . . . . . . Recycler 2 | . . . . . . . . . . . . . 2 . Mechanic 1 | . . . . . 1 . . . . . . . . . Operator 2 | . . . . . 1 . . . . . . . 1 . Watcher 1 | . . . . . 1 . . . . . . . . . Swarmer 27 | . . . 3 3 7 . . 3 . 2 3 5 1 . Grunt 9 | . 2 . 2 2 1 . . . . . . . 2 . Sentry 4 | . . 2 . . 2 . . . . . . . . . Hunter 1 | . . . . 1 . . . . . . . . . . Best Kill Streak 7 | . 3 2 3 4 6 . . 3 . 2 3 5 7 . Combat Bots Only 5 | . 2 2 3 4 4 . . 3 . 2 3 5 1 . Max Kills in Single Turn 7 | . 1 1 3 2 2 . . 2 . 2 2 3 7 . Gunslinging . | . . . . . . . . . . . . . . . Exploded 3 | . . . 3 2 2 . . 2 . 2 2 3 1 . Melee . | . . . . . . . . . . . . . . . Uniques/NPCs Destroyed . | . . . . . . . . . . . . . . . Combat | -11 -10 -9 -9 -8 -8 -7 -7 -7 -7 -6 -6 -5 -4 -4 -------- Run | Yrd Mat Mat Min Mat Sto Fac Low Low Dat Pro Fac Fac Fac Upp Hostile Shots Fired 462 | . 5 16 2 40 27 . 15 9 . 49 115 20 111 53 Missed 231 | . 1 7 1 10 12 . 11 4 . 24 79 7 51 24 Damage Taken 4157 | . 41 135 42 631 176 . 20 70 . 239 453 509 1360 481 Core 1647 | . . 56 . 48 62 . 5 . . 85 97 131 751 412 Absorbed by Shields 22 | . . . . . . . . . . . 22 . . . Core Remaining (%) 89 | 100 100 . 86 . 80 . . . . 87 88 86 . . Volleys Fired 111 | . 12 8 5 26 20 2 . 9 . 3 7 8 11 . Largest 2 | . 2 2 1 2 1 1 . 1 . 2 1 2 1 . Hottest 167 | . 40 55 30 62 39 48 . 48 . 84 48 167 61 . Shots Fired 133 | . 13 16 5 35 20 2 . 9 . 5 7 10 11 . Gun 19 | . 2 8 . 9 . . . . . . . . . . Cannon 82 | . 11 8 . 25 3 2 . 7 . 3 3 9 11 . Launcher 32 | . . . 5 1 17 . . 2 . 2 4 1 . . Special . | . . . . . . . . . . . . . . . Kinetic 92 | . 13 16 . 34 3 2 . 7 . 3 3 . 11 . Thermal 8 | . . . . . . . . . . . . 8 . . Explosive 32 | . . . 5 1 17 . . 2 . 2 4 1 . . Electromagnetic 1 | . . . . . . . . . . . . 1 . . Robot Hit Streak 6 | . 2 4 . 6 5 1 . 2 . 2 1 5 6 . Robot Miss Streak 3 | . 3 1 1 3 3 1 . 2 . 1 3 3 1 . Penetration Max . | . . . . . . . . . . . . . . . Secondary Targets . | . . . . . . . . . . . . . . . Shots Hit Robots 71 | . 6 12 . 22 8 1 . 4 . 3 1 7 7 . Core Hits 71 | . 3 4 6 11 22 . . 4 . 4 3 6 8 . Critical Kills . | . . . . . . . . . . . . . . . Critical Parts Destroyed . | . . . . . . . . . . . . . . . Critical Strikes 4 | . 1 . . 1 . . . . . 1 . . 1 . Blast 4 | . 1 . . 1 . . . . . 1 . . 1 . Melee Attacks . | . . . . . . . . . . . . . . . Impact . | . . . . . . . . . . . . . . . Slashing . | . . . . . . . . . . . . . . . Piercing . | . . . . . . . . . . . . . . . Sneak Attacks . | . . . . . . . . . . . . . . . Combat Hostiles . | . . . . . . . . . . . . . . . Follow-up Attacks . | . . . . . . . . . . . . . . . Damage Inflicted 4344 | . 114 182 206 441 1009 29 . 265 . 153 204 415 1326 . Guns 177 | . 24 74 . 79 . . . . . . . . . . Cannons 1152 | . 90 108 . 299 20 29 . 80 . 50 28 192 256 . Explosions 3015 | . . . 206 63 989 . . 185 . 103 176 223 1070 . Melee . | . . . . . . . . . . . . . . . Ramming . | . . . . . . . . . . . . . . . Kinetic 1137 | . 114 182 . 378 20 29 . 80 . 50 28 . 256 . Thermal 1262 | . . . . . . . . . . . . 192 1070 . Explosive 1945 | . . . 206 63 989 . . 185 . 103 176 223 . . Electromagnetic . | . . . . . . . . . . . . . . . Impact . | . . . . . . . . . . . . . . . Slashing . | . . . . . . . . . . . . . . . Piercing . | . . . . . . . . . . . . . . . Highest Corruption . | . . . . . . . . . . . . . . . Average Corruption . | . . . . . . . . . . . . . . . Corruption Purged . | . . . . . . . . . . . . . . . Corruption Blocked . | . . . . . . . . . . . . . . . Overload Shots . | . . . . . . . . . . . . . . . Overflow Damage 529 | . . . 8 6 15 4 . . . 13 43 15 425 . Projectiles 25 | . . . . 6 . 4 . . . . . 15 . . Explosions 504 | . . . 8 . 15 . . . . 13 43 . 425 . Melee . | . . . . . . . . . . . . . . . Knockbacks 10 | . . . . 5 . . . 1 . . 1 . 3 . Impact . | . . . . . . . . . . . . . . . Kinetic 10 | . . . . 5 . . . 1 . . 1 . 3 . Secondary . | . . . . . . . . . . . . . . . Self-Inflicted Damage 570 | . . . 37 38 . . . . . 43 79 . 373 . Shots 9 | . . . 1 1 . . . . . 1 2 . 4 . Rammed . | . . . . . . . . . . . . . . . Targets Rammed . | . . . . . . . . . . . . . . . Kicked . | . . . . . . . . . . . . . . . Crushed . | . . . . . . . . . . . . . . . Highest Temperature 279 | . 3 4 . 18 52 4 . 120 . 134 25 279 82 . Average Temperature 38 | . 3 4 . 8 11 2 . 73 . 101 7 62 32 . Received Heat Transfer 415 | . 24 45 . 117 72 . . . . 54 58 . 45 . Effects 2 | . . . . . . . . . . . . 2 . . Interference 2 | . . . . . . . . . . . . 2 . . Siege Activations . | . . . . . . . . . . . . . . . Robots Corrupted . | . . . . . . . . . . . . . . . Combat Hostiles . | . . . . . . . . . . . . . . . Parts Fried . | . . . . . . . . . . . . . . . Impact Corruptions . | . . . . . . . . . . . . . . . Robots Melted . | . . . . . . . . . . . . . . . Combat Hostiles . | . . . . . . . . . . . . . . . Parts Melted 1 | . . . . . . . . . . . . . 1 . Heat Transferred 1000 | . . . . . . . . . . . . 300 700 . Parts Sabotaged . | . . . . . . . . . . . . . . . Parts Stolen . | . . . . . . . . . . . . . . . Parts Stripped . | . . . . . . . . . . . . . . . Power Chain Reactions . | . . . . . . . . . . . . . . . Alert | -11 -10 -9 -9 -8 -8 -7 -7 -7 -7 -6 -6 -5 -4 -4 ------- Run | Yrd Mat Mat Min Mat Sto Fac Low Low Dat Pro Fac Fac Fac Upp Peak Influence 651 | . 67 117 196 132 651 273 . . . . 397 208 381 . Initial 337 | . . 27 45 . 55 229 . . . . 337 177 87 . Average 169 | . 11 72 143 85 292 241 . . . . 285 118 178 . Maximum Alert Level 2 | . . . . . 2 1 . . . . 1 1 1 . Low Security (%) 67 | 100 100 100 100 100 46 . . . . . 16 98 52 . Level 1 30 | . . . . . 19 100 . . . . 83 1 47 . Level 2 2 | . . . . . 34 . . . . . . . . . Level 3 . | . . . . . . . . . . . . . . . Level 4 . | . . . . . . . . . . . . . . . Level 5 . | . . . . . . . . . . . . . . . High Security . | . . . . . . . . . . . . . . . Max Security . | . . . . . . . . . . . . . . . Squads Dispatched 11 | . . . . . 3 . . . . . 5 . 3 . Investigation 2 | . . . . . . . . . . . 1 . 1 . Extermination 1 | . . . . . . . . . . . 1 . . . Reinforcement 5 | . . . . . 1 . . . . . 2 . 2 . Assault 2 | . . . . . 2 . . . . . . . . . Garrison 1 | . . . . . . . . . . . 1 . . . Intercept . | . . . . . . . . . . . . . . . Searches Triggered . | . . . . . . . . . . . . . . . Data Miner Redirects 1 | . . . . . . . . . . . . . 1 . Construction Impeded 1 | . . . . . 1 . . . . . . . . . Haulers Reinforced . | . . . . . . . . . . . . . . . Active Scanning Responses . | . . . . . . . . . . . . . . . Cargo Convoy Interrupts . | . . . . . . . . . . . . . . . Stealth | -11 -10 -9 -9 -8 -8 -7 -7 -7 -7 -6 -6 -5 -4 -4 --------- Run | Yrd Mat Mat Min Mat Sto Fac Low Low Dat Pro Fac Fac Fac Upp Distress Signals 4 | . . . . 1 2 . . . . . . . 1 . Communications Jammed . | . . . . . . . . . . . . . . . Distress Signals . | . . . . . . . . . . . . . . . Times Spotted 112 | . 4 2 5 13 19 . 2 2 . 3 20 6 30 6 Peak Tracking Total 11 | . 2 1 3 4 8 1 1 1 . 3 9 5 11 6 Tactical Retreats 15 | . . . . . 1 . 1 . . . 5 . 8 . Traps | -11 -10 -9 -9 -8 -8 -7 -7 -7 -7 -6 -6 -5 -4 -4 ------- Run | Yrd Mat Mat Min Mat Sto Fac Low Low Dat Pro Fac Fac Fac Upp Traps Triggered 6 | . . . . 1 . . . . . . 2 2 1 . Indirectly . | . . . . . . . . . . . . . . . Trap Hack Attempts . | . . . . . . . . . . . . . . . Triggered . | . . . . . . . . . . . . . . . Disarmed . | . . . . . . . . . . . . . . . Reprogrammed . | . . . . . . . . . . . . . . . Reused . | . . . . . . . . . . . . . . . Traps Extracted . | . . . . . . . . . . . . . . . Installed . | . . . . . . . . . . . . . . . Triggered 2 | . . . . . . . . . . . . . . 2 Machines | -11 -10 -9 -9 -8 -8 -7 -7 -7 -7 -6 -6 -5 -4 -4 ---------- Run | Yrd Mat Mat Min Mat Sto Fac Low Low Dat Pro Fac Fac Fac Upp Machines Disabled 14 | . . . . . 5 1 . . . . 2 . 6 . Max in Single Turn 5 | . . . . . 2 1 . . . . 2 . 5 . Garrison Access 2 | . . . . 1 . . . . . . . . 1 . Machines Repaired . | . . . . . . . . . . . . . . . Machines Dismantled . | . . . . . . . . . . . . . . . Machines Sabotaged . | . . . . . . . . . . . . . . . Overloaded Fab Kills . | . . . . . . . . . . . . . . . Hacking | -11 -10 -9 -9 -8 -8 -7 -7 -7 -7 -6 -6 -5 -4 -4 --------- Run | Yrd Mat Mat Min Mat Sto Fac Low Low Dat Pro Fac Fac Fac Upp Machines Accessed 31 | . 1 1 1 2 5 1 . 1 4 . 6 4 5 . Terminals 21 | . 1 1 1 1 5 1 . . . . 6 3 2 . Fabricators 2 | . . . . . . . . . . . . . 2 . Repair Stations . | . . . . . . . . . . . . . . . Recycling Units . | . . . . . . . . . . . . . . . Scanalyzers . | . . . . . . . . . . . . . . . Garrison Access 3 | . . . . 1 . . . . . . . 1 1 . Total Hacks 88 | . 1 1 4 3 10 1 . 1 31 . 15 13 8 . Successful 56 | . . . 2 1 7 1 . 1 31 . 3 4 6 . Failed 31 | . 1 1 1 2 3 . . . . . 12 9 2 . Catastrophic 5 | . 1 . . . . . . . . . 2 2 . . Database Lockouts 1 | . . . 1 . . . . . . . . . . . Manual 35 | . 1 1 4 2 6 1 . . . . 12 6 2 . Terminals 45 | . 1 1 4 2 10 1 . . . . 15 9 2 . Fabricators 3 | . . . . . . . . . . . . . 3 . Repair Stations . | . . . . . . . . . . . . . . . Recycling Units . | . . . . . . . . . . . . . . . Scanalyzers . | . . . . . . . . . . . . . . . Garrison Access 8 | . . . . 1 . . . . . . . 4 3 . Terminal Hacks 46 | . . . 2 . 6 . . 1 31 . 3 2 1 . Record 11 | . . . . . . . . . 11 . . . . . Part Schematic 11 | . . . . . . . . . 11 . . . . . Robot Schematic 6 | . . . . . . . . . 6 . . . . . Robot Analysis 2 | . . . 2 . . . . . . . . . . . Prototype ID Bank 3 | . . . . . . . . . 3 . . . . . Open Door 2 | . . . . . 1 . . 1 . . . . . . Branch Access Points 2 | . . . . . 1 . . . . . . . 1 . Terminal Index 2 | . . . . . 1 . . . . . . 1 . . Alert Level 3 | . . . . . 2 . . . . . 1 . . . Unreport Threat 4 | . . . . . 1 . . . . . 2 1 . . Fabricator Hacks 3 | . . . . . . . . . . . . . 3 . Network Status 1 | . . . . . . . . . . . . . 1 . Load Schematic 1 | . . . . . . . . . . . . . 1 . Build 1 | . . . . . . . . . . . . . 1 . Repair Station Hacks . | . . . . . . . . . . . . . . . Recycling Unit Hacks . | . . . . . . . . . . . . . . . Scanalyzer . | . . . . . . . . . . . . . . . Garrison Access Hacks 2 | . . . . 1 . . . . . . . . 1 . Seal Access 2 | . . . . 1 . . . . . . . . 1 . Unauthorized Hacks 5 | . . . . . 1 1 . . . . . 2 1 . Terminals 5 | . . . . . 1 1 . . . . . 2 1 . Assimilate 1 | . . . . . 1 . . . . . . . . . Botnet 4 | . . . . . . 1 . . . . . 2 1 . Fabricators . | . . . . . . . . . . . . . . . Repair Stations . | . . . . . . . . . . . . . . . Recycling Units . | . . . . . . . . . . . . . . . Scanalyzers . | . . . . . . . . . . . . . . . Garrison Access . | . . . . . . . . . . . . . . . Data Cores Recovered 1 | . . . . . 1 . . . . . . . . . Used . | . . . . . . . . . . . . . . . Hacking Detections 17 | . 1 1 . 1 3 . . . . . 6 4 1 . Full Trace Events 2 | . . . . . . . . . . . 1 . 1 . Feedback Events . | . . . . . . . . . . . . . . . Feedback Blocked . | . . . . . . . . . . . . . . . Robot Schematics Acquired 6 | . . . . . . . . . 6 . . . . . Robots Built . | . . . . . . . . . . . . . . . Authchips . | . . . . . . . . . . . . . . . Time . | . . . . . . . . . . . . . . . Total Robot Build Rating . | . . . . . . . . . . . . . . . Part Schematics Acquired 11 | . . . . . . . . . 11 . . . . . Parts Built 2 | . . . . . . . . . . . . . 2 . Authchips . | . . . . . . . . . . . . . . . Time 47 | . . . . . . . . . . . . . 47 . Total Part Build Rating 10 | . . . . . . . . . . . . . 10 . Parts Repaired . | . . . . . . . . . . . . . . . Time . | . . . . . . . . . . . . . . . Parts Recycled . | . . . . . . . . . . . . . . . Recycled Matter . | . . . . . . . . . . . . . . . Retrieved Matter . | . . . . . . . . . . . . . . . Retrieved Components . | . . . . . . . . . . . . . . . Parts Scanalyzed . | . . . . . . . . . . . . . . . Part Schematics Acquired . | . . . . . . . . . . . . . . . Parts Damaged . | . . . . . . . . . . . . . . . Bothacking | -11 -10 -9 -9 -8 -8 -7 -7 -7 -7 -6 -6 -5 -4 -4 ------------ Run | Yrd Mat Mat Min Mat Sto Fac Low Low Dat Pro Fac Fac Fac Upp Used RIF Installer . | . . . . . . . . . . . . . . . Robots Hacked . | . . . . . . . . . . . . . . . Non-combat . | . . . . . . . . . . . . . . . Combat . | . . . . . . . . . . . . . . . Robot Hacks Applied . | . . . . . . . . . . . . . . . Relay Couplers Released . | . . . . . . . . . . . . . . . Fabnet Peak Effective % . | . . . . . . . . . . . . . . . Robots Rewired . | . . . . . . . . . . . . . . . Allies Hacked . | . . . . . . . . . . . . . . . Hacks Repelled . | . . . . . . . . . . . . . . . Allies | -11 -10 -9 -9 -8 -8 -7 -7 -7 -7 -6 -6 -5 -4 -4 -------- Run | Yrd Mat Mat Min Mat Sto Fac Low Low Dat Pro Fac Fac Fac Upp Total Allies 3 | . . . . . 2 . . . . 1 . . . . Largest Group 2 | . . . . . 2 . . . . 1 . . . . Highest-Rated Group 96 | . . . . . 62 . . . . 96 . . . . Highest-Rated Ally 96 | . . . . . 31 . . . . 96 . . . . Total Orders 2 | . . . . . 1 . . . . . 1 . . . EXPLORE 2 | . . . . . 1 . . . . . 1 . . . Ally Attacks 16 | . . . . . 10 . . . . 6 . . . . Total Damage 352 | . . . . . 213 . . . . 139 . . . . Kills 5 | . . . . . 4 . . . . 1 . . . . Allies Corrupted . | . . . . . . . . . . . . . . . Allies Melted . | . . . . . . . . . . . . . . . Intel | -11 -10 -9 -9 -8 -8 -7 -7 -7 -7 -6 -6 -5 -4 -4 ------- Run | Yrd Mat Mat Min Mat Sto Fac Low Low Dat Pro Fac Fac Fac Upp Robot Analysis Total 2 | . . . 2 . . . . . . . . . . . Derelict Logs Recovered 4 | . . . 1 . . . 1 . . 1 . . . 1 Drone Launches 3 | . . . . . 2 . . . . . 1 . . . Drone Recoveries 1 | . . . . . . . . . . . 1 . . . Exploration | -11 -10 -9 -9 -8 -8 -7 -7 -7 -7 -6 -6 -5 -4 -4 ------------- Run | Yrd Mat Mat Min Mat Sto Fac Low Low Dat Pro Fac Fac Fac Upp Turns Passed 3359 | 2 182 197 421 342 189 89 197 93 28 94 634 376 460 55 Spaces Moved 5988 | 2 123 130 341 163 392 179 607 263 107 329 1446 898 858 150 Core 4 | . . . . . . 1 . . . . . . . 3 Treads . | . . . . . . . . . . . . . . . Legs 680 | 2 123 130 341 84 . . . . . . . . . . Wheels 79 | . . . . 79 . . . . . . . . . . Hover . | . . . . . . . . . . . . . . . Flight 5225 | . . . . . 392 178 607 263 107 329 1446 898 858 147 Fastest Speed 21 | 120 120 120 120 100 26 26 26 26 26 26 26 24 21 35 Average Speed 39 | 120 120 120 120 135 26 31 26 26 26 26 27 24 29 36 Slowest Speed 350 | 120 120 120 120 190 26 350 26 26 26 26 95 24 106 100 Overloaded Moves . | . . . . . . . . . . . . . . . Propulsion Burnouts . | . . . . . . . . . . . . . . . Robots Hopped 61 | . . . . . 6 . 1 . . . 28 4 19 3 Cave-ins Triggered . | . . . . . . . . . . . . . . . Exploration Rate (%) 33 | 2 18 13 78 15 53 5 60 35 74 49 41 17 26 17 Regions Visited 14 Branch Regions 7 Pre-discovered Areas 2 | . . . 1 . . . . . 1 . . . . . Known Exits Taken 3 | . . . . . . . . . . . 1 1 1 . Unknown Exits Taken 11 | 1 1 1 1 1 1 1 1 1 1 1 . . . . Scrap Searched 5 | . . . 1 . . . 2 . . 2 . . . . Spaces Dug 79 | . . . . . 28 . . . . . 51 . . . Terrain Destroyed 302 | . . . 51 7 100 . . 21 . 16 67 9 31 . Melee . | . . . . . . . . . . . . . . . Projectile 8 | . . . . . . . . 2 . . 1 2 3 . AOE 294 | . . . 51 7 100 . . 19 . 16 66 7 28 . Terrain Rammed . | . . . . . . . . . . . . . . . Walls Destroyed . | . . . . . . . . . . . . . . . Machines Disabled . | . . . . . . . . . . . . . . . Actions | -11 -10 -9 -9 -8 -8 -7 -7 -7 -7 -6 -6 -5 -4 -4 --------- Run | Yrd Mat Mat Min Mat Sto Fac Low Low Dat Pro Fac Fac Fac Upp Total 6785 | 1 144 155 348 249 449 207 644 277 106 331 1645 1043 1038 148 Wait 615 | . 2 16 . 40 25 20 35 . . . 179 129 169 . Move 5858 | 1 122 129 340 162 379 178 604 262 106 328 1390 889 823 145 Hop 55 | . . . . . 6 . 1 . . . 27 4 15 2 Pick Up 22 | . 1 . 1 5 2 . . 3 . . 6 1 3 . Fast Attach 31 | . 2 . . 4 3 2 1 1 . . 8 4 6 . Attach 22 | . . . . 1 6 . . . . . 5 5 5 . Detach 9 | . . . . . 1 . 1 . . . 1 2 4 . Swap 16 | . 2 1 1 4 2 3 1 . . . 2 . . . Drop 32 | . 3 1 1 7 5 2 1 2 . . 6 1 2 1 Fire 111 | . 12 8 5 26 20 2 . 9 . 3 7 8 11 . Melee . | . . . . . . . . . . . . . . . Ram . | . . . . . . . . . . . . . . . Kick . | . . . . . . . . . . . . . . . Crush . | . . . . . . . . . . . . . . . Escape Stasis 14 | . . . . . . . . . . . 14 . . . Rewire . | . . . . . . . . . . . . . . . Trap . | . . . . . . . . . . . . . . . Miscellaneous . | . . . . . . . . . . . . . . . Route ------- -11/Scrapyard -10/Materials -9/Materials -9/Mines (discovered 2 exits: *Mat x2) -8/Materials -8/Storage (discovered 2 exits: *Fac / Rec) -7/Factory -7/Lower Caves -7/Lower Caves -7/Data Miner -6/Proximity Caves -6/Factory (discovered 4 exits: *Fac x2 / *Low x2) -5/Factory (discovered 2 exits: *Fac / Upp) -4/Factory (discovered 4 exits: *Upp x2 / Ext x2) -4/Upper Caves History --------- Turn | Location | Event 1 | -11/Scrapyard | Discovered new exit (range 1) 3 | -11/Scrapyard | Entered Materials 136 | -10/Materials | Discovered new exit (range 15) 185 | -10/Materials | Entered another Materials area 185 | -9/Materials | Evolved 2 slots: Propulsion x2 306 | -9/Materials | Build established: Mutant 321 | -9/Materials | Discovered new exit (range 7) 382 | -9/Materials | Entered Mines 390 | -9/Mines | Met a Derelict bent on vengeance 392 | -9/Mines | Learned location of Storage (-8) 500 | -9/Mines | Central database locked down 756 | -9/Mines | Discovered new exit (range 15) 778 | -9/Mines | Discovered new exit (range 10) 803 | -9/Mines | Entered Materials 803 | -8/Materials | Evolved 2 slots: Utility x2 1121 | -8/Materials | Discovered new exit (range 10) 1145 | -8/Materials | Entered Storage 1209 | -8/Storage | Met a pair of Derelict thieves 1268 | -8/Storage | Identified exit to Recycling 1330 | -8/Storage | Discovered new exit (range 15) 1334 | -8/Storage | Entered Factory 1334 | -7/Factory | Evolved 2 slots: Utility x2 1373 | -7/Factory | Discovered new exit (range 13) 1423 | -7/Factory | Entered Lower Caves 1519 | -7/Lower Caves | Encountered a Warlord checkpoint 1538 | -7/Lower Caves | Attracted the attention of an 0b10 checkpoint 1616 | -7/Lower Caves | Discovered new exit (range 16) 1620 | -7/Lower Caves | Entered another Lower Caves area 1707 | -7/Lower Caves | Build established: Sprinter 1711 | -7/Lower Caves | Discovered new exit (range 6) 1713 | -7/Lower Caves | Entered Data Miner 1713 | -7/Data Miner | Discovered new exit (range 6) 1718 | -7/Data Miner | Met Data Miner 1729 | -7/Data Miner | Learned location of Section 7 (-2) 1729 | -7/Data Miner | Acquired the access code to Warlord's prototype stash 1733 | -7/Data Miner | Received God Mode back door access code from Data Miner 1741 | -7/Data Miner | Entered Proximity Caves 1766 | -6/Proximity Caves | Learned 8 Factory zone layouts 1808 | -6/Proximity Caves | Spotter reported a threat 1808 | -6/Proximity Caves | Spotter reported a threat 1817 | -6/Proximity Caves | Spotted B-75 Beast 1821 | -6/Proximity Caves | Attracted the attention of an 0b10 checkpoint 1832 | -6/Proximity Caves | Discovered new exit (range 13) 1835 | -6/Proximity Caves | Entered Factory 1835 | -6/Factory | Evolved 2 slots: Utility x2 1836 | -6/Factory | Identified exit to Lower Caves 1836 | -6/Factory | Identified exit to Factory 2119 | -6/Factory | Discovered exit to Lower Caves (range 22) 2363 | -6/Factory | Garrison activated, responded to threat 2460 | -6/Factory | Discovered exit to Factory (range 19) 2469 | -6/Factory | Entered another Factory area 2469 | -5/Factory | Evolved 2 slots: Propulsion x1, Utility x1 2470 | -5/Factory | Identified exit to Upper Caves 2488 | -5/Factory | Lost 3 parts (1p1u1w) 2783 | -5/Factory | Discovered new exit (range 9) 2786 | -5/Factory | Identified exit to Factory 2845 | -5/Factory | Entered another Factory area 2845 | -4/Factory | Evolved 2 slots: Propulsion x1, Utility x1 2874 | -4/Factory | Spotted B-86 Titan 2985 | -4/Factory | Identified exit to Upper Caves 2985 | -4/Factory | Identified exit to Extension 3124 | -4/Factory | Lost 4 parts (2n2u) 3188 | -4/Factory | Incoming investigation squad redirected 3218 | -4/Factory | Fabricated Adv. Terrain Scanner (x2) 3260 | -4/Factory | Core integrity fell below 50% 3266 | -4/Factory | Spotted B-86 Titan 3290 | -4/Factory | Lost 11 parts (1p5n4u1w) 3305 | -4/Factory | Entered Upper Caves 3323 | -4/Upper Caves | Learned Research terminal intel 3351 | -4/Upper Caves | Core integrity fell below 20% 3360 | -4/Upper Caves | Destroyed by H-77 Assassin with Coil Gun Last Messages --------------- 03263_ Penetrated by Slug. 03263_ K-01 Serf destroyed. 03264_ U-05 Engineer lays Concrete. 03275_ W-44 Eye sends out distress signal. 03294_ Acquired Adv. Power Amplifier. 03298_ Acquired Railgun. LOCATION=UPPER CAVES GOAL=ESCAPE 03306_ Penetrated by Slug. 03306_ Adv. Hacking Suite destroyed. 03307_ Penetrated by Slug. 03316_ Enh. Optical Array destroyed. 03323_ Acquired derelict log, extracted data. Data stored: Research terminal intel. 03356_ Imp. Cesium-ion Thruster destroyed. 03357_ Penetrated by Slug. 03358_ Slug penetrates S-27 Virus. 03358_ S-27 Virus destroyed. 03360_ Dropped Hcp. Matter Pod. 03360_ Penetrated by Slug. Map ----- +----------------------------------------------------+ | ?????????????????????????????????????????????????? | | ?????????????????????????????????????????????????? | | ?????????????????????????????????????????????????? | | ?????????????????????????????????????????????????? | | ?????????????????????????????????????????????????? | | ?????????????????????????????????????????????????? | | ?????????????????????????????????????????????????? | | ?????????????????????????????????????????????????? | | ?????????????????????????????????????????????????? | | ??????????####???####?????????###????????????????? | | ????????### ##### ##????????# ##??????????####?? | | ???????## ##???????# ##????????# ##? | | ???????# #???????# #???????# # ?? | | ???????# #???????# ##??????? ?#? | | ???????## ## #???????# #???????? ## #? | | ????????## ##### ##??????# ##??????# #?? | | ?????????## ##???# #??????# ##???## # #??? | | ??????????####????## #?????## ##### #???? | | ???????????????????# #????## # # #???? | | ???????????????????# ###??# h #?#### | | ?????????????####??# #### h ## ##### | | ????????????## ##?# ## ### ##?## | | ???????????## #### ####### #?## | | ??????????## #### ##???# ### ## | | ?????????## ###s #????# ### | | ?????????# s @ ##????# ##?? | | ?????????########## s% ## ##????# ####??# | | ??????????????????## ### ##?????# ### #?## | | ???????????????????# ##?# #??????# ## #?# | | ???????????????????###?? #???? ## ### | | ??????????????????????? #??# ## | | ??????????????????????? ?# ## | | ??????????????????????# ?#### | | ?????????????????????? ????## | | ?????????????????????? ?????## # | | ?????????????????????# ## ??????# # | | ??????????????????????? #?# ??????# # | | ???????????????????????## ?? ##??????# # | | ????????????????????????? # ??? ????????# # | | ????????????????????????? ?# ?????? ????????# # | | ????????????????????????? ??# ????????????#### | | ??????????????????????????????# ###### | | ??????????????????????????????# | | ?????????????????????????????# | | ??????????????????????????? ######## | | ???????????????????????????? ## ?????????## | | ???????????????????????????????????????????????## | | ?????????????????????????????????????????????????# | | ?????????????????????????????????????????????????? | | ?????????????????????????????????????????????????? | +----------------------------------------------------+ Best States ------------- Heat Dissipation 43 Energy Generation 18 Energy Capacity 310 Matter Stores 300 Matter Capacity 500 Sight Range 22 Robot Scan Range 15 Terrain Scan Range 20 Terrain Scan Density 10 Armor Coverage 150 Evasion (%) 73 Offensive Hacking 34 Item Schematics ----------------- Combat Drone Bay | -7/Data Miner | Free Lgt. Regenerative Plating | -7/Data Miner | Free Cld. Cesium-ion Thruster | -7/Data Miner | Free Gravity Neutralizer | -7/Data Miner | Free Shock Maul | -7/Data Miner | Free Field Propulsion Drive | -7/Data Miner | Free Remote Force Field | -7/Data Miner | Free Hvy. Phase Cannon | -7/Data Miner | Free Adv. Terrain Scanner | -7/Data Miner | Free Adv. System Restoration Module | -7/Data Miner | Free Imp. Gyrokinetic Inverter | -7/Data Miner | Free Robot Schematics ------------------ H-55 Commando | -7/Data Miner | Free P-60 Hacker | -7/Data Miner | Free M-22 Extractor | -7/Data Miner | Free E-15 Imp | -7/Data Miner | Free S-27 Virus | -7/Data Miner | Free L-41 Fighter | -7/Data Miner | Free Fabricated ------------ Adv. Terrain Scanner | x2 | -4/Factory Alien Tech Used ----------------- None Achievements -------------- None Challenges ------------ None Game ------ Seed SpliceReactiveBattery Manual? 0 Play Time 00:56:43 Cumulative 71.0 hours Start 2024.05.31 @ 13:01:49 End 2024.05.31 @ 13:59:03 Sessions 1 Manual Loads 0 Difficulty Rogue Special Mode None Game No. 99 Rogue 15 Adventurer 79 Explorer 5 Win Type - Total 2 Types 2/0/0/0/0/0/0/0/0 Lore% 34 Gallery% 50 Achievement% 38 Wizard Run 0 Options --------- Layout 1 ASCII 0 Keyboard 0 Movement Arrows Keybinds 0 Fullscreen 2 Font 24/Smallcaps Map View 50x35 Zoom Use 0% Tactical HUD 1 Map Filters NONE Filters NONE Steam 1 RUN: 9c980666-e342-45a9-bbf8-70c02017096e